Workbook

Sheet הוצאות
B1: תקציב אירוע עבור [שם האירוע] | H1: הוצאות
B3: סך הכל הוצאות | G3: משוערת | H3: בפועל
G4: =SUM(C11,C19,C25,C32,G11,G19,G24) -> ₪ 882.00 | H4: =SUM(D11,D19,D25,D32,H11,H19,H24) -> ₪ 333.00
B6: אתר | C6: משוערת | D6: בפועל | F6: כיבוד | G6: משוערת | H6: בפועל
B7: שכירת חדר ואולם | C7: ₪ 500.00 | F7: מזון
B8: צוות באתר | F8: משקאות | G8: ₪ 20.00
B9: ציוד | F9: מפות | H9: ₪ 20.00
B10: שולחנות וכיסאות | F10: צוות ודמי שירות
B11: סה"כ | C11: =SUBTOTAL(109,טבלה1[משוערת]) -> ₪ 500.00 | D11: =SUBTOTAL(109,טבלה1[בפועל]) -> ₪ 0.00 | F11: סה"כ | G11: =SUBTOTAL(109,טבלה3[משוערת]) -> ₪ 20.00 | H11: =SUBTOTAL(109,טבלה3[בפועל]) -> ₪ 20.00
B13: קישוטים | C13: משוערת | D13: בפועל | F13: תוכנית | G13: משוערת | H13: בפועל
B14: פרחים | C14: ₪ 200.00 | D14: ₪ 300.00 | F14: הופעה
B15: נרות | F15: מרצים | G15: ₪ 30.00
B16: תאורה | F16: נסיעות
B17: בלונים | F17: מלון
B18: קישוטי נייר | F18: אחר
B19: סה"כ | C19: =SUBTOTAL(109,טבלה4[משוערת]) -> ₪ 200.00 | D19: =SUBTOTAL(109,טבלה4[בפועל]) -> ₪ 300.00 | F19: סה"כ | G19: =SUBTOTAL(109,טבלה5[משוערת]) -> ₪ 30.00 | H19: =SUBTOTAL(109,טבלה5[בפועל]) -> ₪ 0.00
B21: פרסום | C21: משוערת | D21: בפועל | F21: פרסים | G21: משוערת | H21: בפועל
B22: גרפיקה | F22: גביעים/מדליות
B23: צילום/הדפסה | C23: ₪ 20.00 | F23: מתנות | G23: ₪ 100.00
B24: דמי דואר | F24: סה"כ | G24: =SUBTOTAL(109,טבלה7[משוערת]) -> ₪ 100.00 | H24: =SUBTOTAL(109,טבלה7[בפועל]) -> ₪ 0.00
B25: סה"כ | C25: =SUBTOTAL(109,טבלה6[משוערת]) -> ₪ 20.00 | D25: =SUBTOTAL(109,טבלה6[בפועל]) -> ₪ 0.00
B27: שונות | C27: משוערת | D27: בפועל
B28: טלפון | D28: ₪ 13.00
B29: תחבורה | C29: ₪ 12.00
B30: מוצרי נייר
B31: שירותי פקס
B32: סה"כ | C32: =SUBTOTAL(109,טבלה8[משוערת]) -> ₪ 12.00 | D32: =SUBTOTAL(109,טבלה8[בפועל]) -> ₪ 13.00

Sheet הכנסות
B1: תקציב אירוע עבור [שם האירוע] | G1: הכנסות
B3: סך הכל הכנסות | F3: משוערת | G3: בפועל
F4: =SUM(F11, F18, F25, F33) -> ₪ 1,936.00 | G4: =SUM(G11,G18,G25, G33) -> ₪ 1,831.00
B6: כרטיסי כניסה
B7: מס' משוער | C7: מס' בפועל | D7: סוג | E7: מחיר | F7: הכנסה משוערת | G7: הכנסה בפועל
B8: 300 | C8: 278 | D8: מבוגרים | E8: ₪ 5.00 | F8: =B8*E8 -> ₪ 1,500.00 | G8: =C8*E8 -> ₪ 1,390.00
B9: 197 | C9: 195 | D9: ילדים | E9: ₪ 2.00 | F9: =B9*E9 -> ₪ 394.00 | G9: =C9*E9 -> ₪ 390.00
B10: 42 | C10: 51 | D10: אחר | E10: ₪ 1.00 | F10: =B10*E10 -> ₪ 42.00 | G10: =C10*E10 -> ₪ 51.00
B11: סה"כ | F11: =SUBTOTAL(109,טבלה9[הכנסה משוערת]) -> ₪ 1,936.00 | G11: =SUBTOTAL(109,טבלה9[הכנסה בפועל]) -> ₪ 1,831.00
B13: פרסומות בתוכנייה
B14: מס' משוער | C14: מס' בפועל | D14: סוג | E14: מחיר | F14: הכנסה משוערת | G14: הכנסה בפועל
B15: 12 | D15: כריכות | F15: =B15*E15 -> ₪ 0.00 | G15: =C15*E15 -> ₪ 0.00
C16: 158 | D16: חצי עמוד | F16: =B16*E16 -> ₪ 0.00 | G16: =C16*E16 -> ₪ 0.00
B17: 4 | D17: רבע עמוד | F17: =B17*E17 -> ₪ 0.00 | G17: =C17*E17 -> ₪ 0.00
B18: סה"כ | F18: =SUBTOTAL(109,טבלה10[הכנסה משוערת]) -> ₪ 0.00 | G18: =SUBTOTAL(109,טבלה10[הכנסה בפועל]) -> ₪ 0.00
B20: מציגים/מוכרים
B21: מס' משוער | C21: מס' בפועל | D21: סוג | E21: מחיר | F21: הכנסה משוערת | G21: הכנסה בפועל
B22: 23 | D22: דוכנים גדולים | F22: =B22*E22 -> ₪ 0.00 | G22: =C22*E22 -> ₪ 0.00
B23: 354 | D23: דוכנים בינוניים | F23: =B23*E23 -> ₪ 0.00 | G23: =C23*E23 -> ₪ 0.00
B24: 56 | D24: דוכנים קטנים | F24: =B24*E24 -> ₪ 0.00 | G24: =C24*E24 -> ₪ 0.00
B25: סה"כ | F25: =SUBTOTAL(109,טבלה11[הכנסה משוערת]) -> ₪ 0.00 | G25: =SUBTOTAL(109,טבלה11[הכנסה בפועל]) -> ₪ 0.00
B27: מכירת פריטים
B28: מס' משוער | C28: מס' בפועל | D28: סוג | E28: מחיר | F28: הכנסה משוערת | G28: הכנסה בפועל
D29: פריטים | F29: =B29*E29 -> ₪ 0.00 | G29: =C29*E29 -> ₪ 0.00
B30: 123 | D30: פריטים | F30: =B30*E30 -> ₪ 0.00 | G30: =C30*E30 -> ₪ 0.00
D31: פריטים | F31: =B31*E31 -> ₪ 0.00 | G31: =C31*E31 -> ₪ 0.00
B32: 13 | D32: פריטים | F32: =B32*E32 -> ₪ 0.00 | G32: =C32*E32 -> ₪ 0.00
B33: סה"כ | F33: =SUBTOTAL(109,טבלה12[הכנסה משוערת]) -> ₪ 0.00 | G33: =SUBTOTAL(109,טבלה12[הכנסה בפועל]) -> ₪ 0.00

Sheet סיכום רווח והפסד
B1: תקציב אירוע עבור [שם האירוע] | G1: רווח
G2: סיכום הפסד
C5: משוערת | D5: בפועל
B6: סה"כ הכנסות | C6: =הכנסות!F4 -> ₪ 1,936.00 | D6: =הכנסות!G4 -> ₪ 1,831.00
B7: סה"כ הוצאות | C7: =הוצאות!G4 -> ₪ 882.00 | D7: =הוצאות!H4 -> ₪ 333.00
B9: סה"כ רווח (או הפסד) | C9: =C6-C7 -> ₪ 1,054.00 | D9: =D6-D7 -> ₪ 1,498.00
